lending/lending_fUSD_20250501
["ID","MTS","AMOUNT","RATE_DAILY","PERIOD"]
[359516034,1746087038920,-1720.11708316,0.00019887,2]
[359516036,1746087038929,-1720.11708316,0.00019887,2]
[359516038,1746087038938,-1720.11708316,0.00019887,2]
[359516040,1746087038948,-1720.11708316,0.00019887,2]
[359516042,1746087038958,-1720.11708316,0.00019887,2]
[359516044,1746087038967,-1720.11708316,0.00019887,2]
[359516046,1746087038977,-1720.11708316,0.00019887,2]
[359516048,1746087038987,-1720.11708316,0.00019887,2]
[359516050,1746087038997,-1720.11708316,0.00019887,2]
[359516052,1746087039006,-1720.11708316,0.00019887,2]
[359516054,1746087039016,-1720.11708316,0.00019887,2]
[359516056,1746087039025,-1720.11708316,0.00019887,2]
[359516058,1746087039034,-1720.11708316,0.00019887,2]
[359516060,1746087039044,-200.0,0.00020056,2]
[359516062,1746087039053,-289.49478398,0.000209,4]
[359516211,1746087040653,-2115.63322746,0.000209,4]
[359516213,1746087040663,-582.29,0.000212,2]
[359516215,1746087040674,-420.0,0.00021656,2]
[359516217,1746087040683,-2405.1280112,0.00021762,5]
[359516219,1746087040693,-200.0,0.0002186,2]
[359516221,1746087040703,-150.0,0.00021917,2]
[359516223,1746087040713,-2405.1280112,0.00022624,7]
[359516225,1746087040722,-150.0,0.00023287,2]
[359516227,1746087040732,-150.99,0.00023368,2]
[359516229,1746087040741,-2405.1280112,0.00023486,9]
[359516231,1746087040750,-587.0,0.00023584,2]
[359516233,1746087040760,-2405.1280112,0.00024348,11]
[359516235,1746087040769,-150.0,0.00024657,2]
[359516237,1746087040779,-2405.1280112,0.0002521,12]
[359516239,1746087040789,-511.93284645,0.00025352,2]
[359516241,1746087040798,-998.7842668,0.00025352,2]
[359516243,1746087040807,-823.0,0.00025683,2]
[359516245,1746087040817,-150.0,0.00026027,2]
[359516247,1746087040827,-2405.1280112,0.00026072,14]
[359516249,1746087040837,-2405.1280112,0.00026934,16]
[359516251,1746087040847,-150.0,0.00027397,2]
[359516253,1746087040856,-1000.0,0.00027397,2]
[359516255,1746087040865,-522.64809645,0.000274,2]
[359516257,1746087040876,-2405.1280112,0.00027797,17]
[359516259,1746087040885,-2405.1280112,0.00028659,19]
[359516261,1746087040894,-298.28971517,0.00028767,2]
[359516263,1746087040904,-304.29,0.00029399,2]
[359516265,1746087040914,-2405.1280112,0.00029521,21]
[359516267,1746087040923,-169.04,0.0003019,2]
[359516269,1746087040933,-2405.1280112,0.00030383,22]
[359516271,1746087040943,-2405.1280112,0.00031245,24]
[359516273,1746087040953,-237.217446,0.00031492,2]
[359516275,1746087040962,-610.19,0.00031576,2]
[359516277,1746087040972,-237.217446,0.00031886,2]
[359516279,1746087040982,-250.0,0.00032084,2]
[359516281,1746087040992,-2405.1280112,0.00032107,26]
[359516283,1746087041001,-237.217446,0.00032279,2]
[359516285,1746087041011,-1348.94,0.00032444,2]
[359516287,1746087041021,-150.0,0.00032472,2]
[359516289,1746087041030,-237.217446,0.00032673,2]
[359516291,1746087041040,-1000.0,0.00032726,2]
[359516293,1746087041050,-1000.0,0.00032754,2]
[359516295,1746087041060,-2405.1280112,0.00032969,28]
[359516297,1746087041070,-237.217446,0.00033067,2]
[359516299,1746087041080,-1000.0,0.00033165,2]
[359516301,1746087041090,-150.0,0.00033191,2]
[359516303,1746087041099,-500.0,0.00033619,2]
[359516304,1746087041108,-204.02,0.00033739,2]
[359516306,1746087041118,-2405.1280112,0.00033831,29]
[359516308,1746087041127,-610.19,0.0003384,2]
[359516310,1746087041136,-1746.89,0.000339,7]
[359516312,1746087041146,-1348.94,0.00034066,2]
[359516314,1746087041155,-200.0,0.00034287,2]
[359516316,1746087041165,-158.42,0.00034347,2]
[359516318,1746087041174,-13389.73962372,0.00034357,30]
[359516320,1746087041184,-5569.0,0.000346,5]
[359516322,1746087041195,-200.0,0.0003465,2]
[359516324,1746087041204,-2405.1280112,0.00034693,31]
[359516326,1746087041214,-300.0,0.00035051,2]
[359516328,1746087041223,-166.66,0.00035318,2]
[359516330,1746087041233,-249.813,0.00035344,2]
[359516332,1746087041242,-150.0,0.00035344,2]
[359516334,1746087041252,-161.787,0.00035344,2]
[359516336,1746087041262,-155.71,0.00035344,2]
[359516338,1746087041271,-153.488,0.00035344,2]
[359516340,1746087041280,-253.434,0.00035344,2]
[359516342,1746087041290,-245.67,0.00035344,2]
[359516344,1746087041299,-182.611,0.00035344,2]
[359516346,1746087041308,-259.559,0.00035344,2]
[359516348,1746087041318,-202.863,0.00035344,2]
[359516350,1746087041328,-923.0,0.00035344,2]
[359516352,1746087041337,-797.0,0.00035344,2]
[359516354,1746087041348,-580.0,0.00035344,2]
[359516356,1746087041357,-6750.0,0.00035344,2]
[359516358,1746087041367,-4003.0,0.00035344,2]
[359516360,1746087041376,-201.076,0.00035344,2]
[359516362,1746087041386,-264.778,0.00035344,2]
[359516363,1746087041395,-878.0,0.00035344,2]
[359516366,1746087041404,-885.477,0.00035344,2]
[359516369,1746087041414,-213.0,0.000355,2]
[359516371,1746087041424,-359.98,0.000355,31]
[359516373,1746087041433,-359.98,0.000355,31]
[359516375,1746087041442,-359.98,0.000355,31]
[359516377,1746087041457,-359.98,0.000355,31]
[359516379,1746087041466,-359.98,0.000355,31]
[359516381,1746087041475,-359.98,0.000355,31]
[359516383,1746087041485,-359.98,0.000355,31]
[359516385,1746087041495,-359.98,0.000355,31]
[359516387,1746087041505,-359.98,0.000355,31]
[359516389,1746087041514,-359.98,0.000355,31]
[359516391,1746087041523,-359.98,0.000355,31]
[359516393,1746087041534,-359.98,0.000355,31]
[359516395,1746087041543,-2405.1280112,0.00035555,33]
[359516397,1746087041552,-1348.94,0.00035688,2]
[359516399,1746087041561,-158.42,0.00035986,2]
[359516401,1746087041570,-23900.0,0.00035996,2]
[359516403,1746087041579,-1326.03,0.00036,2]
[359516405,1746087041589,-610.19,0.00036104,2]
[359516407,1746087041598,-2405.1280112,0.00036417,34]
[359516409,1746087041607,-300.0,0.00036421,2]
[359516411,1746087041616,-166.66,0.00036775,2]
[359516413,1746087041625,-500.0,0.00037,5]
[359516415,1746087041635,-501.24300274,0.00037,5]
[359516417,1746087041644,-1326.03,0.00037,2]
[359516419,1746087041653,-500.0,0.00037017,5]
[359516421,1746087041663,-500.0,0.00037017,5]
[359516422,1746087041672,-500.0,0.00037017,5]
[359516425,1746087041682,-500.0,0.00037017,5]
[359516427,1746087041691,-500.0,0.00037017,5]
[359516428,1746087041701,-152.0,0.00037074,3]
[359516430,1746087041712,-501.41990566,0.00037144,5]
[359516433,1746087041722,-246.41118833,0.000372,120]
[359516434,1746087041732,-246.41118831,0.000372,120]
[359516436,1746087041742,-246.41118831,0.000372,120]
[359516439,1746087041752,-151.39,0.000372,2]
[359516441,1746087041761,-2405.1280112,0.00037279,36]
[359516443,1746087041771,-1348.94,0.0003731,2]
[359516445,1746087041781,-158.42,0.00037366,2]
[359516447,1746087041791,-3975.40454564,0.00037376,7]
[359516449,1746087041800,-500.0,0.00037383,5]
[359516451,1746087041810,-1000.0,0.00037387,2]
[359516453,1746087041819,-177.74,0.00037387,2]
[359516454,1746087041829,-300.0,0.00037387,2]
[359516456,1746087041840,-910.54,0.00037387,2]
[359516458,1746087041850,-779.543,0.00037521,48]
[359516460,1746087041861,-169.463,0.00037521,48]
[359516462,1746087041870,-151.0,0.000377,7]
[359516465,1746087041880,-151.0,0.000377,7]
[359516466,1746087041889,-151.0,0.000377,7]
[359516468,1746087041899,-160.0,0.000377,54]
[359516471,1746087041909,-359.98,0.000381,31]
[359516472,1746087041919,-359.98,0.000381,31]
[359516474,1746087041929,-359.98,0.000381,31]
[359516477,1746087041938,-359.98,0.000381,31]
[359516479,1746087041949,-359.98,0.000381,31]
[359516481,1746087041958,-359.98,0.000381,31]
[359516482,1746087041969,-359.98,0.000381,31]
[359516484,1746087041979,-359.98,0.000381,31]
[359516486,1746087041988,-359.98,0.000381,31]
[359516488,1746087041998,-359.98,0.000381,31]
[359516491,1746087042008,-359.98,0.000381,31]
[359516493,1746087042018,-359.98,0.000381,31]
[359516495,1746087042028,-359.98,0.000381,31]
[359516496,1746087042038,-359.98,0.000381,31]
[359516499,1746087042049,-359.98,0.000381,31]
[359516501,1746087042059,-359.98,0.000381,31]
[359516503,1746087042069,-359.98,0.000381,31]
[359516505,1746087042079,-359.98,0.000381,31]
[359516506,1746087042089,-359.98,0.000381,31]
[359516508,1746087042098,-359.98,0.000381,31]
[359516510,1746087042108,-359.98,0.000381,31]
[359516513,1746087042119,-359.98,0.000381,31]
[359516515,1746087042129,-359.98,0.000381,31]
[359516517,1746087042138,-359.98,0.000381,31]
[359516519,1746087042148,-2405.1280112,0.00038141,38]
[359516521,1746087042159,-166.66,0.00038233,2]
[359516523,1746087042169,-2106.1887,0.000383,2]
[359516524,1746087042178,-150.0,0.00038344,2]
[359516526,1746087042188,-923.0,0.00038344,2]
[359516529,1746087042199,-295.183,0.00038344,2]
[359516531,1746087042208,-6750.0,0.00038344,2]
[359516532,1746087042220,-4003.0,0.00038344,2]
[359516534,1746087042231,-153.0,0.00038344,2]
[359516536,1746087042243,-153.0,0.00038344,2]
[359516538,1746087042253,-878.0,0.00038344,2]
[359516540,1746087042262,-876.0,0.00038344,2]
[359516542,1746087042272,-215.5267442,0.00038356,2]
[359516544,1746087042281,-610.19,0.00038368,2]
[359516546,1746087042291,-158.42,0.0003838,2]
[359516548,1746087042300,-155.722336,0.000384,14]
[359516550,1746087042310,-166.497068,0.000384,14]
[359516552,1746087042320,-151.0,0.000384,14]
[359516554,1746087042329,-314.905682,0.000384,14]
[359516557,1746087042339,-151.0,0.000384,14]
[359516559,1746087042348,-314.905682,0.000384,14]
[359516561,1746087042358,-164.189359,0.000384,14]
[359516563,1746087042367,-151.0,0.000384,14]
[359516565,1746087042377,-151.0,0.000384,14]
[359516567,1746087042387,-151.0,0.000384,14]
[359516569,1746087042397,-151.0,0.000384,14]
[359516571,1746087042407,-151.0,0.000384,14]
[359516573,1746087042416,-275.675757,0.000384,14]
[359516575,1746087042426,-275.675757,0.000384,14]
[359516577,1746087042435,-155.347705,0.000384,14]
[359516579,1746087042445,-151.0,0.000384,14]
[359516581,1746087042458,-151.39,0.00038459,2]
[359516583,1746087042467,-213.0,0.000385,2]
[359516598,1746087042477,-160.0,0.000387,57]
[359516601,1746087042621,-500.0,0.00038712,2]
[359516603,1746087042631,-1348.94,0.00038933,2]
[359516605,1746087042640,-1000.0,0.00038933,2]
[359516607,1746087042650,-181.5,0.00038958,30]
[359516609,1746087042659,-1326.04254589,0.00039,2]
[359516611,1746087042669,-2405.1280112,0.00039003,39]
[359516613,1746087042678,-246.41118831,0.00039134,120]
[359516615,1746087042688,-2000.0,0.000392,2]
[359516617,1746087042698,-152.0,0.00039276,4]
[359516618,1746087042707,-764.0,0.000394,2]
[359516620,1746087042716,-236.0,0.000394,2]
[359516621,1746087042726,-374.0,0.000394,2]
[359516622,1746087042735,-1255.55,0.0003947,5]
[359516623,1746087042744,-500.0,0.00039582,60]
[359516624,1746087042753,-500.0,0.00039582,60]
[359516625,1746087042763,-500.0,0.00039582,60]
[359516626,1746087042773,-500.0,0.00039582,60]
[359516627,1746087042784,-500.0,0.00039582,60]
[359516628,1746087042795,-613.0,0.00039582,60]
[359516629,1746087042805,-200.0,0.00039582,13]
[359516630,1746087042815,-200.0,0.00039582,13]
[359516631,1746087042824,-200.0,0.00039582,13]
[359516633,1746087042834,-346.0,0.00039582,13]
[359516634,1746087042843,-2382.0,0.00039647,2]
[359516636,1746087042852,-166.66,0.0003969,2]
[359516639,1746087042862,-160.0,0.000397,60]
[359516640,1746087042871,-151.39,0.00039718,2]
[359516643,1746087042881,-2405.1280112,0.00039866,41]
[359516645,1746087042891,-157.55048229,0.000399,2]
[359516647,1746087042901,-158.42,0.0003999,2]
[359516649,1746087042910,-158.42,0.0003999,2]
[359516651,1746087042919,-50000.0,0.0004,30]
[359516653,1746087042929,-157.6,0.0004,30]
[359516655,1746087042938,-1000.0,0.00040049,7]
[359516657,1746087042949,-28651.1085849,0.00040176,4]
[359516659,1746087042959,-201.0,0.00040176,30]
[359516661,1746087042968,-1000.0,0.00040186,7]
[359516663,1746087042978,-150.0,0.00040555,2]
[359516665,1746087042987,-359.98,0.000406,31]
[359516666,1746087042997,-359.98,0.000406,31]
[359516669,1746087043007,-359.98,0.000406,31]
[359516670,1746087043016,-359.98,0.000406,31]
[359516673,1746087043026,-359.98,0.000406,31]
[359516674,1746087043035,-359.98,0.000406,31]
[359516676,1746087043045,-359.98,0.000406,31]
[359516678,1746087043054,-359.98,0.000406,31]
[359516680,1746087043064,-359.98,0.000406,31]
[359516682,1746087043073,-359.98,0.000406,31]
[359516684,1746087043083,-359.98,0.000406,31]
[359516686,1746087043092,-359.98,0.000406,31]
[359516688,1746087043102,-359.98,0.000406,31]
[359516690,1746087043112,-359.98,0.000406,31]
[359516692,1746087043121,-359.98,0.000406,31]
[359516694,1746087043131,-359.98,0.000406,31]
[359516698,1746087043141,-359.98,0.000406,31]
[359516700,1746087043152,-359.98,0.000406,31]
[359516702,1746087043161,-359.98,0.000406,31]
[359516703,1746087043171,-359.98,0.000406,31]
[359516705,1746087043181,-359.98,0.000406,31]
[359516707,1746087043191,-359.98,0.000406,31]
[359516709,1746087043202,-359.98,0.000406,31]
[359516711,1746087043211,-359.98,0.000406,31]
[359516714,1746087043222,-610.19,0.00040632,2]
[359516716,1746087043231,-1000.0,0.0004065,7]
[359516718,1746087043241,-1333.0,0.00040658,120]
[359516720,1746087043252,-160.0,0.000407,63]
[359516722,1746087043261,-2405.1280112,0.00040728,43]
[359516725,1746087043271,-1002.37253846,0.00040791,7]
[359516727,1746087043280,-2000.0,0.0004088,120]
[359516729,1746087043289,-998.1087,0.00040888,7]
[359516731,1746087043298,-151.39,0.00040977,2]
[359516733,1746087043307,-28651.1085849,0.0004099,4]
[359516734,1746087043316,-50000.0,0.00041,31]
[359516736,1746087043326,-299.43261,0.00041095,30]
[359516740,1746087043338,-200.0,0.00041096,10]
[359516742,1746087043349,-500.0,0.00041096,30]
[359516745,1746087043359,-500.0,0.00041096,30]
[359516746,1746087043369,-500.0,0.00041096,30]
[359516748,1746087043378,-500.0,0.00041096,30]
[359516750,1746087043387,-500.0,0.00041096,30]
[359516752,1746087043396,-500.0,0.00041096,30]
[359516754,1746087043406,-500.0,0.00041096,30]
[359516756,1746087043415,-154.0,0.00041096,30]
[359516758,1746087043424,-250.0,0.00041096,30]
[359516760,1746087043434,-166.66,0.00041147,2]
[359516762,1746087043445,-299.43261,0.00041295,30]
[359516764,1746087043457,-150.0,0.00041344,2]
[359516766,1746087043466,-6750.0,0.00041344,2]
[359516768,1746087043476,-4003.0,0.00041344,2]
[359516770,1746087043485,-153.0,0.00041344,2]
[359516772,1746087043495,-878.0,0.00041344,2]
[359516774,1746087043504,-876.0,0.00041344,2]
[359516776,1746087043514,-500.0,0.00041369,15]
[359516778,1746087043523,-500.0,0.00041369,15]
[359516780,1746087043534,-500.0,0.00041369,15]
[359516782,1746087043545,-500.0,0.00041369,15]
[359516784,1746087043555,-500.0,0.00041369,15]
[359516786,1746087043565,-500.0,0.00041369,15]
[359516788,1746087043575,-500.0,0.00041369,15]
[359516790,1746087043584,-500.0,0.00041369,15]
[359516792,1746087043593,-500.0,0.0004137,3]
[359516794,1746087043603,-700.0,0.0004137,3]
[359516796,1746087043612,-800.0,0.0004137,3]
[359516798,1746087043621,-152.0,0.00041478,5]
[359516800,1746087043631,-299.43261,0.00041495,30]
[359516802,1746087043640,-213.0,0.000415,2]
[359516804,1746087043650,-2405.1280112,0.0004159,44]
[359516806,1746087043659,-1247.37,0.00041632,5]
[359516808,1746087043669,-299.43261,0.00041695,30]
[359516810,1746087043678,-160.0,0.000417,66]
[359516812,1746087043687,-500.0,0.00041759,60]
[359516814,1746087043696,-500.0,0.00041759,60]
[359516816,1746087043707,-338869.8392525,0.000418,10]
[359516818,1746087043717,-151.0,0.000418,14]
[359516820,1746087043727,-151.0,0.000418,14]
[359516822,1746087043737,-174.735767,0.000418,14]
[359516824,1746087043746,-2000.0,0.0004188,120]
[359516826,1746087043755,-299.43261,0.00041895,30]
[359516828,1746087043764,-2000.0,0.000419,2]
[359516830,1746087043774,-155.65,0.0004198,2]
[359516832,1746087043783,-28651.1085849,0.0004199,4]
[359516834,1746087043792,-57302.2171698,0.0004199,4]
[359516836,1746087043802,-2975.0922709,0.0004199,4]
[359516838,1746087043811,-50000.0,0.00042,32]
[359516840,1746087043820,-132051.09825669,0.00042,5]
[359516842,1746087043830,-20162.0,0.00042,2]
[359516845,1746087043839,-5096.42265509,0.00042,5]
[359516847,1746087043848,-299.43261,0.00042095,30]
[359516849,1746087043857,-28651.1085849,0.00042233,4]
[359516853,1746087043866,-151.39,0.00042235,2]
[359516856,1746087043875,-299.43261,0.00042295,30]
[359516859,1746087043884,-400.0,0.0004237,3]
[359516862,1746087043894,-700.0,0.0004237,3]
[359516865,1746087043904,-1000.0,0.0004238,14]
[359516866,1746087043914,-2405.1280112,0.00042452,46]
[359516869,1746087043925,-931.81498311,0.00042479,10]
[359516871,1746087043934,-299.43261,0.00042495,30]
[359516875,1746087043943,-1000.0,0.00042496,10]
[359516876,1746087043953,-1000.0,0.00042496,10]
[359516880,1746087043963,-1000.0,0.00042496,10]
[359516883,1746087043973,-1000.0,0.00042496,10]
[359516886,1746087043982,-164.50740952,0.00042496,10]
[359516889,1746087043992,-5000.0,0.000425,120]
[359516892,1746087044001,-5800.0,0.00042555,14]
[359516895,1746087044011,-299.43261,0.00042695,30]
[359516898,1746087044021,-160.0,0.000427,69]
[359516900,1746087044030,-168.611437,0.000428,44]
[359516902,1746087044039,-2975.0922709,0.00042845,4]
[359516904,1746087044049,-500.0,0.00042855,60]
[359516906,1746087044058,-500.0,0.00042855,60]
[359516908,1746087044068,-1003.06857668,0.00042863,10]
[359516910,1746087044077,-2975.0922709,0.0004287,4]
[359516912,1746087044087,-166.497068,0.0004288,14]
[359516914,1746087044096,-151.0,0.0004288,14]
[359516916,1746087044105,-151.0,0.0004288,14]
[359516918,1746087044114,-155.466797,0.0004288,14]
[359516919,1746087044124,-275.675757,0.0004288,14]
[359516921,1746087044133,-275.675757,0.0004288,14]
[359516923,1746087044143,-151.0,0.0004288,14]
[359516925,1746087044153,-17591.8403982,0.0004288,120]
[359516928,1746087044162,-161.42447212,0.0004289,9]
[359516929,1746087044172,-299.43261,0.00042895,30]
[359516931,1746087044181,-610.19,0.00042896,2]
[359516933,1746087044191,-157.2364078,0.00042959,2]
[359516935,1746087044201,-85953.3257547,0.0004298,4]
[359516937,1746087044210,-41651.2917926,0.0004298,4]
[359516939,1746087044220,-155.65,0.0004298,2]
[359516941,1746087044229,-28651.1085849,0.0004299,4]
[359516943,1746087044238,-8925.2768127,0.0004299,4]
[359516945,1746087044250,-229208.868679,0.0004299,4]
[359516948,1746087044260,-65452.0299598,0.0004299,4]
[359516949,1746087044270,-50000.0,0.00043,33]
[359516951,1746087044280,-151.0,0.00043,14]
[359516954,1746087044291,-314.905682,0.00043,14]
[359516956,1746087044303,-151.0,0.00043,14]
[359516958,1746087044313,-314.905682,0.00043,14]
[359516960,1746087044322,-151.0,0.00043,14]
[359516961,1746087044331,-151.0,0.00043,14]
[359516976,1746087044340,-414941.97254504,0.00043,15]
[359516978,1746087044471,-445.51,0.00043,120]
[359516980,1746087044480,-394.39,0.00043,120]
[359516982,1746087044490,-860.59,0.00043,120]
[359516984,1746087044500,-5690.15,0.00043,14]
[359516986,1746087044509,-150.0,0.00043078,2]
[359516988,1746087044519,-299.43261,0.00043095,30]
[359516990,1746087044530,-359.98,0.000432,33]
[359516992,1746087044540,-359.98,0.000432,33]
[359516994,1746087044550,-359.98,0.000432,33]
[359516996,1746087044560,-359.98,0.000432,33]
[359516998,1746087044571,-359.98,0.000432,33]
[359517000,1746087044580,-359.98,0.000432,33]
[359517002,1746087044590,-359.98,0.000432,33]
[359517004,1746087044599,-359.98,0.000432,33]
[359517006,1746087044608,-359.98,0.000432,33]
[359517008,1746087044618,-359.98,0.000432,33]
[359517010,1746087044628,-359.98,0.000432,33]
[359517012,1746087044637,-359.98,0.000432,33]
[359517014,1746087044647,-359.98,0.000432,33]
[359517016,1746087044657,-359.98,0.000432,33]
[359517018,1746087044666,-359.98,0.000432,33]
[359517020,1746087044676,-359.98,0.000432,33]
[359517022,1746087044687,-359.98,0.000432,33]
[359517024,1746087044696,-359.98,0.000432,33]
[359517026,1746087044706,-359.98,0.000432,33]
[359517028,1746087044716,-359.98,0.000432,33]
[359517030,1746087044725,-359.98,0.000432,33]
[359517032,1746087044735,-359.98,0.000432,33]
[359517034,1746087044745,-359.98,0.000432,33]
[359517036,1746087044754,-359.98,0.000432,33]
[359517038,1746087044763,-150.0,0.00043274,2]
[359517040,1746087044772,-1265.9829967,0.0004328,4]
[359517042,1746087044782,-299.43261,0.00043295,30]
[359517044,1746087044792,-150.0,0.00043295,2]
[359517046,1746087044802,-1455.74,0.000433,14]
[359517048,1746087044812,-2405.1280112,0.00043314,48]
[359517050,1746087044821,-366.55894193,0.00043315,14]
[359517052,1746087044831,-4763.33526,0.00043315,30]
[359517054,1746087044840,-150.0,0.00043385,2]
[359517056,1746087044849,-200.0,0.00043403,14]
[359517058,1746087044858,-1000.0,0.00043435,14]
[359517060,1746087044868,-150.0,0.00043457,2]
[359517062,1746087044877,-28651.1085849,0.0004349,4]
[359517064,1746087044886,-151.39,0.00043494,2]
[359517066,1746087044896,-299.43261,0.00043495,30]
[359517068,1746087044905,-21089.98,0.000435,2]
[359517070,1746087044914,-7029.99,0.000435,2]
[359517072,1746087044923,-300.0,0.000435,7]
[359517074,1746087044933,-300.0,0.000435,7]
[359517076,1746087044942,-300.0,0.000435,7]
[359517078,1746087044952,-300.0,0.000435,7]
[359517080,1746087044962,-309.35126671,0.000435,7]
[359517082,1746087044972,-5690.15,0.000435,14]
[359517084,1746087044981,-18378.0,0.00043527,10]
[359517086,1746087044990,-150.0,0.0004355,120]
[359517088,1746087045000,-155.65,0.0004358,2]
[359517090,1746087045011,-28651.1085849,0.0004359,4]
[359517091,1746087045020,-320.88,0.000436,120]
[359517092,1746087045030,-1311.78,0.000436,120]
[359517093,1746087045040,-1271.44,0.000436,120]
[359517094,1746087045050,-257.35,0.000436,120]
[359517095,1746087045059,-150.0,0.00043634,2]
[359517096,1746087045069,-150.0,0.00043652,2]
[359517097,1746087045079,-150.0,0.00043655,2]
[359517098,1746087045088,-152.0,0.00043679,6]
[359517099,1746087045098,-299.43261,0.00043695,30]
[359517100,1746087045108,-160.0,0.000437,72]
[359517101,1746087045118,-1000.0,0.0004373,14]
[359517102,1746087045127,-150.0,0.00043739,120]
[359517104,1746087045137,-150.0,0.00043756,120]
[359517106,1746087045147,-161.4244721,0.0004379,13]
[359517108,1746087045156,-150.0,0.00043819,2]
[359517110,1746087045166,-470.0,0.00043835,31]
[359517112,1746087045175,-500.0,0.00043835,31]
[359517114,1746087045185,-450.0,0.00043835,2]
[359517116,1746087045194,-450.0,0.00043835,2]
[359517118,1746087045204,-450.0,0.00043835,2]
[359517119,1746087045213,-450.0,0.00043835,2]
[359517121,1746087045223,-450.0,0.00043835,2]
[359517123,1746087045232,-500.0,0.00043835,31]
[359517125,1746087045242,-500.0,0.00043835,2]
[359517127,1746087045252,-287.5586945,0.00043835,15]
[359517130,1746087045268,-500.0,0.00043835,31]
[359517133,1746087045288,-500.0,0.00043835,31]
[359517137,1746087045309,-500.0,0.00043835,31]
[359517140,1746087045329,-500.0,0.00043835,31]
[359517142,1746087045344,-500.0,0.00043835,31]
[359517145,1746087045364,-500.0,0.00043835,31]
[359517148,1746087045385,-630.63738424,0.00043835,31]
[359517152,1746087045404,-500.0,0.00043835,31]
[359517155,1746087045423,-504.62661682,0.00043835,31]
[359517157,1746087045441,-538.39648351,0.00043835,31]
[359517160,1746087045469,-500.0,0.00043835,20]
[359517163,1746087045484,-1002.912,0.00043835,2]
[359517166,1746087045504,-408.0016555,0.00043836,10]
[359517168,1746087045518,-500.0,0.00043836,31]
[359517171,1746087045535,-2751.0,0.00043836,30]
[359517174,1746087045549,-150.0,0.00043847,2]
[359517176,1746087045565,-150.0,0.00043866,2]
[359517179,1746087045581,-299.43261,0.00043895,30]
[359517182,1746087045596,-2000.0,0.000439,30]
[359517184,1746087045611,-2000.0,0.000439,30]
[359517187,1746087045631,-2000.0,0.000439,30]
[359517190,1746087045647,-2000.0,0.000439,30]
[359517192,1746087045661,-2000.0,0.000439,30]
[359517195,1746087045676,-2000.0,0.000439,30]
[359517197,1746087045691,-2000.0,0.000439,30]
[359517200,1746087045707,-2000.0,0.000439,30]
[359517203,1746087045723,-2213.1174,0.000439,30]
[359517205,1746087045738,-2000.0,0.000439,30]
[359517208,1746087045754,-601.77631564,0.00043951,120]
[359517210,1746087045768,-500.0,0.00043951,120]
[359517213,1746087045783,-28651.1085849,0.0004398,4]
[359517215,1746087045798,-150.0,0.00043996,2]
[359517217,1746087045813,-50000.0,0.00044,34]
[359517219,1746087045829,-5690.15,0.00044,14]
[359517222,1746087045844,-1316.0,0.00044011,30]
[359517224,1746087045860,-150.0,0.00044028,2]